Cogmind - Beta 16.1 @@@ ROGUE MODE // 2026.02.19 @ 22:16:34 Player: Kaisercar Result: Destroyed by EQ-004 with Heavy Hardcell Cannon Performance ------------- Evolutions (9) 4500 Regions Visited (26) 5200 Robots Destroyed (224) 1120 Value Destroyed (11229) 11229 Prototype IDs (70) 1400 Alien Tech Used (0) 0 Bonus (18206) 18206 TOTAL SCORE: 41655 Bonus ------- High Alert Combat Kills 1341 Follower Combat Kills 868 Entered Garrisons 200 Entered DSFs 500 Aligned with FarCom 300 Met Data Miner 300 Acquired ECA 300 Met Warlord at Base 500 MAIN.C Attacked Warlord 500 Warlord Defense Kills 1034 Met Warlord at Research 2000 Destroyed MAIN.C Guards 500 Met MAIN.C 5000 Destroyed MAIN.C Shell 5000 Met Warlord at Command 2000 Friendly Fire -2137 Cogmind --------- Core Integrity 0/1600 Matter 300/300 Energy 38/100 System Corruption 58% Temperature Cool (-200) Movement Core (50) Location -1/Command Parts ------- > --- POWER (3) -------- (None) > --- PROPULSION (7) --- (None) > --- UTILITY (12) ----- Advanced Cryofiber Web Advanced Targeting Computer Improved System Shield > --- WEAPON (3) ------- (None) > --- INVENTORY (5) ---- Advanced Cryofiber Web High-capacity Storage Unit High-powered Tractor Beam Graviton Cannon Tesla Bomb Launcher Peak State ------------ > --- POWER ------------ Antimatter Reactor Quantum Reactor Reinforced Quantum Reactor > --- PROPULSION ------- Myomer Leg Centrium Leg Heavy Shield Leg Heavy Shield Leg Experimental Biometal Leg > --- UTILITY ---------- Advanced Cryofiber Web Advanced Heat Sink High-capacity Storage Unit Advanced Terrain Scanner Experimental Targeting Computer Improved Target Analyzer Improved Medium Armor Plating Improved Heavy Armor Plating Experimental Focal Shield Advanced Remote Force Field Improved Hacking Suite > --- WEAPON ----------- Nova Cannon Enhanced Hardcell Cannon Enhanced Hardcell Cannon > --- INVENTORY -------- Heavy Siege Treads Myomer Leg Experimental Myomer Leg Centrium Leg Centrium Leg Compact Matter Pod Thermal Shield High-powered Tractor Beam Enhanced Quantum Rifle Long-range Proton Cannon Enhanced Nova Cannon Enhanced Nova Cannon Enhanced Hardcell Cannon Compact Linear Accelerator Tesla Bomb Launcher Fusion Bomb Launcher Fusion Bomb Launcher Deploy-a-Sentry [Rating: 192] Favorites ----------- Power Fusion Reactor Engine Ion Engine Power Core Reinforced Fission Core Reactor Fusion Reactor Propulsion Light Armored Exoskeleton Treads Light Treads Leg Light Armored Exoskeleton Wheel Wheel Utility Advanced Targeting Computer Device Advanced Heat Sink Storage Large Storage Unit Processor Advanced Targeting Computer Hackware Improved Hacking Suite Protection Layered Light Armor Plating Weapon Mass Driver Energy Gun Variable Charge Gun Energy Cannon Phase Cannon Ballistic Gun Assault Rifle Ballistic Cannon Mass Driver Launcher Heavy Missile Launcher Special Weapon Improved Remote Datajack Impact Weapon Mace Build | -11 -10 -10 -10 -9 -8 -8 -8 -7 -7 -6 -6 -6 -6 -5 -5 -5 -5 -4 -4 -4 -4 -3 -3 -2 -1 -1 ------- Run | Yrd Mat Min Exi Min Mat Gar Mat Fac DSF Fac Low Low Dat Pro Fac Was Fac Fac Upp Upp War Pro Res Res Acc Com Slots Evolved 18 | . . . . . 4 . . 2 . 2 . . . . 2 . . 2 . . . . 2 2 2 . Power 2 | . . . . . . . . . . . . . . . 1 . . . . . . . . . 1 . Propulsion 5 | . . . . . 2 . . . . 1 . . . . . . . . . . . . . 1 1 . Utility 10 | . . . . . 2 . . 2 . 1 . . . . 1 . . 1 . . . . 2 1 . . Weapon 1 | . . . . . . . . . . . . . . . . . . 1 . . . . . . . . Parts Attached 240 | 8 8 5 1 1 7 13 15 6 10 7 4 2 . 4 12 1 8 10 10 3 22 4 3 29 7 40 Power 22 | 1 1 . . . . 3 1 . . . 1 . . 1 1 . 3 . . 1 . . . 4 1 4 Engine 5 | 1 1 . . . . . 1 . . . 1 . . 1 . . . . . . . . . . . . Core 5 | . . . . . . 3 . . . . . . . . 1 . 1 . . . . . . . . . Reactor 12 | . . . . . . . . . . . . . . . . . 2 . . 1 . . . 4 1 4 Propulsion 65 | 3 1 1 1 . 2 8 6 1 6 . . 1 . . 1 . . 4 2 1 9 . . 7 1 10 Treads 4 | 2 1 . . . . . 1 . . . . . . . . . . . . . . . . . . . Leg 60 | 1 . . 1 . 2 8 5 1 6 . . 1 . . 1 . . 4 2 1 9 . . 7 1 10 Wheel 1 | . . 1 . . . . . . . . . . . . . . . . . . . . . . . . Hover . | . . . . . . . . . . . . . . . . . . . . . . . . . . . Flight . | . . . . . . . . . . . . . . . . . . . . . . . . . . . Utility 89 | 2 2 3 . . 2 1 4 5 1 5 1 1 . 1 5 . 3 2 6 . 9 3 2 11 3 17 Device 40 | 1 2 1 . . . . 1 2 . 2 1 . . 1 1 . 1 1 2 . 4 3 1 5 2 9 Storage 7 | 1 . 1 . . . . . . . . . . . . . . . . 2 . 1 . . 1 . 1 Processor 16 | . . . . . 1 . . 1 . 2 . 1 . . 1 . 1 . 1 . 2 . . 2 1 3 Hackware 6 | . . . . . . . . . . . . . . . 1 . . 1 . . . . 1 . . 3 Protection 20 | . . 1 . . 1 1 3 2 1 1 . . . . 2 . 1 . 1 . 2 . . 3 . 1 Artifact . | . . . . . . . . . . . . . . . . . . . . . . . . . . . Weapon 64 | 2 4 1 . 1 3 1 4 . 3 2 2 . . 2 5 1 2 4 2 1 4 1 1 7 2 9 Energy Gun 11 | 1 . 1 . 1 . 1 3 . . . . . . . . . 1 . 1 . . 1 . . 1 . Energy Cannon 16 | . 2 . . . 1 . . . 2 1 1 . . . 1 . . 1 . . 2 . . 2 . 3 Ballistic Gun 2 | 1 . . . . . . . . . . . . . . . . . . . 1 . . . . . . Ballistic Cannon 19 | . . . . . 1 . 1 . . 1 . . . 1 2 . . 2 1 . 2 . . 4 . 4 Launcher 9 | . 1 . . . . . . . 1 . 1 . . 1 . 1 . 1 . . . . . . 1 2 Special Weapon 2 | . . . . . . . . . . . . . . . . . 1 . . . . . 1 . . . Impact Weapon 5 | . 1 . . . 1 . . . . . . . . . 2 . . . . . . . . 1 . . Slashing Weapon . | . . . . . . . . . . . . . . . . . . . . . . . . . . . Piercing Weapon . | . . . . . . . . . . . . . . . . . . . . . . . . . . . Special Melee Weapon . | . . . . . . . . . . . . . . . . . . . . . . . . . . . Unidentified Prototypes 14 | . . 1 . . . . 1 . . . . . . . 1 . 1 1 . . 3 . . 2 . 4 Corrupted Parts 1 | . . . . . . . . . . . . . . . . . . . . . 1 . . . . . System Corruption 10 | . . . . . . . . . . . . . . . . . . . . . 10 . . . . . Parts Lost 85 | . . 1 . . . 2 6 . . . 1 1 . 1 1 1 3 1 4 2 5 2 3 1 1 49 Power 10 | . . . . . . . 1 . . . . . . 1 . . . . . 1 . . . . . 7 Propulsion 22 | . . 1 . . . . 3 . . . . 1 . . . . . . 1 1 . 1 . . . 14 Utility 34 | . . . . . . 1 1 . . . 1 . . . 1 . 2 1 . . 4 1 3 1 1 17 Weapon 19 | . . . . . . 1 1 . . . . . . . . 1 1 . 3 . 1 . . . . 11 Highest Loss Streak 23 | . . 1 . . . 1 6 . . . 1 1 . 1 1 1 2 1 3 1 4 1 3 1 1 23 To Critical Strikes 2 | . . . . . . . 1 . . . . . . . . . . . . . . . . . . 1 Average Backups 13 | 3 7 11 13 12 10 11 10 11 12 12 12 12 13 12 12 12 12 13 15 16 14 10 11 16 16 17 Power . | . . . 1 1 1 1 . . . . . 1 1 . . 1 1 1 1 . . 1 1 1 . . Propulsion 1 | 1 2 3 3 2 1 1 1 . 1 1 1 . . . . . . 1 1 1 . . . 2 4 3 Utility 5 | . 2 4 5 4 4 5 6 6 5 4 7 7 7 6 6 6 4 4 8 10 8 5 5 4 3 3 Weapon 5 | . 1 3 3 4 4 2 2 5 5 6 4 4 5 5 4 4 5 5 4 4 4 3 4 8 9 10 Tool/Special . | . . . . . . . . . . . . . . . . . . . . . . . . . . . Unused Backups 57 | . 4 . . 1 . 4 4 . 4 2 1 . . 1 1 . 1 3 2 . 11 . . 9 . 9 Power 3 | . . . . . . 1 . . . . . . . . 1 . 1 . . . . . . . . . Propulsion 11 | . 1 . . . . 2 1 . . . . . . . . . . . . . . . . 4 . 3 Utility 18 | . 2 . . 1 . 1 1 . 1 . . . . 1 . . . 1 1 . 6 . . 1 . 2 Weapon 24 | . 1 . . . . . 2 . 3 2 1 . . . . . . 2 . . 5 . . 4 . 4 Tool/Special 1 | . . . . . . . . . . . . . . . . . . . 1 . . . . . . . Average Slot Usage (%) 91 | . 100 99 100 100 95 99 93 96 92 85 86 86 86 86 86 84 87 91 93 93 93 93 85 86 87 87 Engine 3 | . 14 14 14 14 9 2 5 7 7 6 6 6 6 6 5 5 1 . . . . . . . . . Core 2 | . . . . . . 6 2 . . . . . . . 4 5 5 5 5 5 5 5 4 . . . Reactor 3 | . . . . . . . . . . . . . . . . . 3 5 5 4 5 5 4 7 11 10 Treads 2 | . 28 19 15 . . . . . . . . . . . . . . . . . . . . . . . Leg 20 | . . . 12 28 35 36 33 30 23 19 20 20 20 20 16 17 17 18 20 20 22 21 19 18 20 23 Device 13 | . 14 3 . . 8 9 4 12 15 19 13 13 13 12 11 5 10 14 10 10 9 20 20 21 20 22 Storage 6 | . 14 14 14 14 9 9 8 7 7 6 6 6 6 6 5 5 5 5 5 5 5 5 4 4 4 3 Processor 11 | . . . . . 5 9 9 7 7 8 20 20 20 20 17 23 18 10 14 15 15 10 8 6 9 12 Hackware 4 | . . . . . . . . . . . . . . . 4 5 5 10 10 10 10 10 9 4 4 2 Protection 5 | . . 10 14 14 9 9 13 13 15 10 6 6 6 6 5 3 4 5 5 5 4 . . 6 5 . Energy Gun 1 | . 3 2 8 7 1 1 4 7 . . . . . . . . 2 . 3 . . 3 4 . 2 . Energy Cannon 5 | . 11 11 5 6 4 6 . . 10 9 8 7 13 6 5 5 5 4 4 5 3 4 4 4 4 4 Ballistic Gun 1 | . 6 4 14 14 5 . . . . . . . . . . . . . . 3 1 . . . . . Ballistic Cannon 3 | . . . . . 1 4 4 . . . 3 . . . 2 2 . 9 7 6 7 5 . 6 5 4 Launcher 1 | . 2 9 . . 1 1 . 7 2 2 . 4 . 4 . 1 . . . . . . . . . . Peak Build Rating 192 | 7 9 17 11 12 20 31 37 46 57 67 70 67 65 69 86 83 88 106 106 107 140 135 144 179 192 192 Average Rating 92 | 5 8 8 10 11 18 26 30 42 52 63 67 64 65 66 78 79 84 98 102 101 111 128 132 169 187 174 On Entrance 67 | . 7 8 10 11 12 20 31 36 46 54 65 64 65 65 69 82 79 83 106 102 101 98 131 129 175 184 Avg Prop Armor Cover (%) 8 | . . 9 . . . . . . . . . . . . . . 9 . . . . . . . . 8 Naked Turns . | . . . . . . . . . . . . . . . . . . . . . . . . . . . Heaviest Build 189 | 14 17 34 33 33 37 38 48 52 59 64 53 53 53 53 64 64 77 91 108 108 130 127 121 176 189 167 Greatest Support 210 | 40 40 40 40 20 43 58 59 62 80 80 80 80 80 80 83 83 83 103 105 100 131 131 103 178 203 210 Greatest Overweight (x) 10 | 3 . 10 1 1 . . 2 . 1 . . . . . . . 1 1 1 1 1 1 1 1 . 2 Average Overweight (x) . | . . 2 . 1 . . . . . . . . . . . . . . . . . . 1 . . . Largest Inventory Capacity 20 | 8 8 15 15 15 15 15 15 15 15 15 15 15 15 15 15 15 15 15 20 20 20 20 20 20 20 20 Average Capacity 16 | 7 8 13 15 15 15 15 14 15 15 15 15 15 15 15 15 15 15 15 18 20 20 20 20 20 20 19 Most Carried 20 | 5 8 15 15 15 15 15 15 15 15 15 15 15 15 15 15 15 15 15 20 20 20 20 20 20 19 20 Average Carried 16 | 3 7 11 14 14 13 14 13 14 14 14 14 14 15 14 14 14 14 14 18 19 19 18 19 19 18 17 Final Capacity 20 | 8 8 15 15 15 15 15 15 15 15 15 15 15 15 15 15 15 15 15 20 20 20 20 20 20 20 5 Final Carried 20 | 5 8 15 15 15 15 15 15 15 15 15 15 15 15 14 14 15 14 15 20 20 20 18 20 19 19 5 Class Distribution -------------------- 33% | Mutant 17% | Hacker-Skirmisher 9% | Hacker-Tank 9% | Skirmisher 5% | Scavenger-Tank 5% | Scavenger-Gunner 5% | Scavenger-Mutant 4% | Tank 3% | Hacker-Mutant Dominant Class ---------------- Mutant | -10/Materials Mutant | -10/Mines Mutant | -10/Exiles Mutant | -9/Mines Mutant | -8/Materials Mutant | -8/Garrison Scavenger-Mutant | -8/Materials Scavenger-Mutant | -7/Factory Mutant | -7/DSF Skirmisher | -6/Factory Skirmisher | -6/Lower Caves Mutant | -6/Lower Caves Mutant | -6/Data Miner Mutant | -5/Proximity Caves Assassin | -5/Factory Skirmisher | -5/Waste Skirmisher | -5/Factory Hacker-Skirmisher | -4/Factory Hacker-Skirmisher | -4/Upper Caves Hacker-Skirmisher | -4/Upper Caves Hacker-Mutant | -4/Warlord Hacker-Tank | -3/Proximity Caves Hacker-Skirmisher | -3/Research Tank | -2/Research Scavenger-Tank | -1/Access Scavenger-Gunner | -1/Command Resources | -11 -10 -10 -10 -9 -8 -8 -8 -7 -7 -6 -6 -6 -6 -5 -5 -5 -5 -4 -4 -4 -4 -3 -3 -2 -1 -1 ----------- Run | Yrd Mat Min Exi Min Mat Gar Mat Fac DSF Fac Low Low Dat Pro Fac Was Fac Fac Upp Upp War Pro Res Res Acc Com Matter Collected 9367 | 300 109 428 . 84 35 800 536 . 34 218 465 232 . 193 320 . 263 550 437 166 781 279 . 762 277 2098 Remotely 740 | . . . . . . . . . . . . . . . . . . . . . 295 . . . . 445 Salvage Created 8679 | 126 396 145 . 82 31 837 579 . 187 425 103 206 . 202 441 . 306 481 193 229 319 211 . 556 472 2152 Parts 353 | 14 29 17 . 1 7 41 22 . 10 30 8 10 . 5 14 . 13 16 . 6 2 4 . 18 19 67 Haulers Intercepted 3 | . 1 . . . . . 2 . . . . . . . . . . . . . . . . . . . Recyclers Shooed 6 | . . . . . . . 1 . . . . . . . 3 . . 1 . . . . . . . 1 Parts Field Recycled . | . . . . . . . . . . . . . . . . . . . . . . . . . . . Retrieved Matter . | . . . . . . . . . . . . . . . . . . . . . . . . . . . Parts Self-Destructed 43 | . . . . . . . . . . . 7 5 . 4 . . . . 14 9 . 4 . . . . Prevented 4 | . . . . . . . . . . . 1 . . . . . . . . 3 . . . . . . Parts Restored . | . . . . . . . . . . . . . . . . . . . . . . . . . . . Kills | -11 -10 -10 -10 -9 -8 -8 -8 -7 -7 -6 -6 -6 -6 -5 -5 -5 -5 -4 -4 -4 -4 -3 -3 -2 -1 -1 ------- Run | Yrd Mat Min Exi Min Mat Gar Mat Fac DSF Fac Low Low Dat Pro Fac Was Fac Fac Upp Upp War Pro Res Res Acc Com Combat Hostiles Destroyed 178 | . 12 14 . . 2 22 9 . 4 6 7 6 . 12 8 . 4 4 6 4 6 6 . 8 16 22 Melee 1 | . . . . . . . 1 . . . . . . . . . . . . . . . . . . . Guns 16 | . 5 3 . . . 4 2 . . . . . . . . . . . . 1 . . . . . 1 Cannons 92 | . 5 4 . . . 11 4 . 1 5 5 2 . 4 5 . 4 3 2 3 5 3 . 7 6 13 AOE 59 | . 2 7 . . 2 6 1 . 3 1 2 4 . 8 3 . . . 4 . . 1 . . 9 6 Classes Destroyed 26 | 2 5 1 . . 1 5 2 . 1 . 1 1 . 1 . . . . 1 . 1 . . 1 1 2 Worker 4 | . . . . . 1 . . . . . . . . . 1 . . . . . . . . . 1 1 Builder 6 | . 1 . . . . . 1 . . . . . . . . . 1 . . . . . . . 3 . Tunneler 4 | 3 . . . . . . . . . . . . . . . . . . . . . . . . 1 . Hauler 3 | . 1 . . . . . 2 . . . . . . . . . . . . . . . . . . . Recycler 14 | 1 1 . . . . . 2 . . . . . . . 2 . 1 2 . . . . . 1 . 4 Minesweeper 1 | . . . . . . . . . . . . . . . . . . . 1 . . . . . . . Mechanic 3 | . . . . . . . 1 . . . . . . . . . . . . . 1 . . . 1 . Operator 1 | . . . . . . . . . . . . . . . . . . . . . . . . . 1 . Drone 4 | . . . . . . . . . . . . . . 2 . . . . . . . 2 . . . . Watcher 7 | . 2 . . . 1 . 2 . . . . . . . . . . 2 . . . . . . . . Swarmer 48 | . 8 8 . . 2 . 1 . 1 . 4 3 . 5 5 . 1 . 1 . 1 . . . 8 . Cutter 2 | . . . . . . 2 . . . . . . . . . . . . . . . . . . . . Grunt 43 | . 4 2 . . . 9 4 . 2 3 2 . . 4 . . . 3 1 2 1 . . 1 . 5 Brawler 8 | . . . . . . 3 1 . . . . . . . . . 1 . 1 1 . . . 1 . . Duelist 10 | . . . . . . 5 . . . . . . . . . . 1 . 2 . . . . 1 . 1 Sentry 12 | . . . . . . 2 2 . . 2 . . . 1 1 . . . 1 . . 1 . . . 2 Demolisher 1 | . . . . . . . . . . . . . . . . . . . . . . . . 1 . . Specialist 2 | . . . . . . . . . 1 . . . . . . . . . . . 1 . . . . . Hunter 13 | . . . . . . . 1 . . 2 . 2 . . 2 . . . . 1 . . . . 4 1 Programmer 22 | . . . . . . 1 . . . 2 . . . . . . 1 1 . . . 3 . 1 4 9 M Guard 2 | . . . . . . . . . . . . . . . . . . . . . . . . . . 2 Enhanced Q-Series 1 | . . . . . . . . . . . . . . . . . . . . . . . . . . 1 Striker 6 | . . . . . . . . . . . . . . . . . . . . . 3 . . 3 . . Thief 1 | . . . . . . . . . . . 1 . . . . . . . . . . . . . . . Assembled 4 | . . 4 . . . . . . . . . . . . . . . . . . . . . . . . Guerrilla 1 | . . . . . . . . . . . . . . . . . . . . . . . . . . 1 Wizard 2 | . . . . . . . . . . . . . . . . . . . . . . . . . . 2 Fireman 1 | . . . . . . . . . . . . . . . . . . . . . . . . . . 1 Mutant 1 | . . . . . . . . . . . . 1 . . . . . . . . . . . . . . Best Kill Streak 11 | 4 6 4 . . 3 3 4 . 3 2 4 3 . 5 6 . 3 2 5 3 2 2 . 4 11 3 Combat Bots Only 7 | . 5 4 . . 2 3 3 . 3 2 4 3 . 5 5 . 2 2 5 3 2 2 . 4 7 3 Max Kills in Single Turn 4 | 1 2 2 . . 1 2 1 . 3 4 2 2 . 3 2 . 1 1 3 1 1 1 . 1 4 2 Gunslinging . | . . . . . . . . . . . . . . . . . . . . . . . . . . . Exploded 4 | . 2 2 . . 1 2 1 . 3 1 2 2 . 3 2 . . . 3 . . 1 . . 4 2 Melee 1 | . . . . . . . 1 . . . . . . . . . . . . . . . . . . . Uniques/NPCs Destroyed 1 | . . . . . . . . . . . . . . . . . . . . . . . . . . 1 MAIN.C Shell (-1/Command) Combat | -11 -10 -10 -10 -9 -8 -8 -8 -7 -7 -6 -6 -6 -6 -5 -5 -5 -5 -4 -4 -4 -4 -3 -3 -2 -1 -1 -------- Run | Yrd Mat Min Exi Min Mat Gar Mat Fac DSF Fac Low Low Dat Pro Fac Was Fac Fac Upp Upp War Pro Res Res Acc Com Hostile Shots Fired 1471 | . 49 33 . . 3 84 69 . 30 82 34 22 . 75 60 3 29 45 66 52 89 43 4 68 107 424 Missed 508 | . 7 13 . . . 31 12 . 9 36 8 9 . 34 25 1 7 21 25 24 31 11 2 28 43 131 Deflected 1 | . . . . . . . . . . . . . . . . . . . . . . . . . . 1 Hits 963 | . 42 20 . . 3 53 57 . 21 46 26 13 . 41 35 2 22 24 41 28 58 32 2 40 64 293 Melee 41 | . . . . . . 9 3 . . . 3 . . . . 2 9 . 2 . 7 . . 6 . . Projectile 922 | . 42 20 . . 3 44 54 . 21 46 23 13 . 41 35 . 13 24 39 28 51 32 2 34 64 293 AOE 19 | . . . . . . . . . . . . . . . . . . . . . . . . 2 . 17 Critical Strikes 43 | . . . . . . 5 3 . 1 . 2 . . . . 1 3 . . . 2 5 . 2 1 18 Part Disruptions 16 | . . . . . . . . . . . . . . . . . 1 . . . 1 . . . 1 13 Damage Taken 22894 | . 462 212 . 39 44 1027 902 . 422 579 487 223 . 598 570 108 498 371 1311 493 1380 535 562 1182 896 9993 Core 2742 | . 93 17 . . . 142 104 . 16 87 38 18 . 48 . . 39 15 41 54 34 85 264 20 114 1513 Absorbed by Shields 2034 | . . . . . . 26 12 . . 20 . . . . . . 111 139 . . 64 213 74 . 481 894 Ignored by Resistances 1655 | . . . . . . . . . . . . . . . . . . . . . . 16 . 176 308 1155 Regen/Repaired (Parts) 965 | . . . . . . . 296 . . . . . . . 416 . . . . . 253 . . . . . Core Remaining (%) 82 | 100 . . . 56 . . 55 . 97 . . . . 77 . . 96 . . . . 80 79 98 . . Volleys Fired 750 | 8 38 32 . 7 6 70 38 . 6 26 23 8 . 27 39 4 26 45 32 9 24 24 24 43 58 133 Largest 3 | 2 2 2 . 2 2 2 2 . 2 2 2 2 . 2 2 2 2 3 3 3 3 3 1 3 3 3 Hottest 360 | 60 120 80 . 65 90 90 100 . 130 130 170 170 . 170 157 157 185 204 207 192 203 244 105 229 236 360 Shots Fired 1330 | 16 55 40 . 9 7 118 62 . 11 46 40 13 . 36 51 9 39 83 66 27 69 37 24 104 101 267 Gun 202 | 16 24 13 . 9 1 20 28 . . . . . . . . . 13 2 18 5 . 4 . . 20 29 Cannon 1029 | . 26 18 . . 2 83 31 . 10 46 36 7 . 25 48 8 26 81 44 22 69 31 20 100 68 228 Launcher 95 | . 5 9 . . 4 15 3 . 1 . 4 6 . 11 3 1 . . 4 . . 2 . 4 13 10 Special 4 | . . . . . . . . . . . . . . . . . . . . . . . 4 . . . Kinetic 501 | 8 12 8 . 2 2 48 31 . . 4 10 . . 4 14 4 . 36 28 18 67 21 . 61 26 97 Thermal 711 | 8 38 23 . . 1 46 28 . 10 42 26 7 . 21 34 4 39 47 31 9 2 14 20 39 62 160 Explosive 89 | . 5 9 . . 4 15 3 . 1 . 4 6 . 11 3 1 . . 4 . . . . . 13 10 Electromagnetic 25 | . . . . 7 . 9 . . . . . . . . . . . . 3 . . 2 . 4 . . Robot Hit Streak 39 | 6 8 6 . 8 10 18 14 . 9 12 6 9 . 18 13 7 8 6 16 5 10 6 3 9 8 39 Robot Miss Streak 11 | 3 3 4 . 1 1 2 3 . 1 3 2 1 . 6 10 2 1 2 3 3 2 2 2 3 11 3 Penetration Max 1 | . . . . . . . . . . . . . . . . . . 1 1 . 1 . . . . . Secondary Targets . | . . . . . . . . . . . . . . . . . . . . . . . . . . . Shots Hit Robots 767 | 10 31 18 . 8 3 77 51 . 9 28 25 7 . 21 24 7 20 42 47 14 43 19 2 50 36 175 Core Hits 447 | 5 18 17 . 4 8 41 27 . 11 13 12 10 . 21 21 1 11 16 25 8 16 7 . 20 39 96 Critical Kills 10 | . . . . . . 2 . . . . . . . . . . . 1 . 1 . 1 . 1 1 3 Critical Parts Destroyed 1 | . . . . . . . . . . . . . . . . . . . 1 . . . . . . . Critical Strikes 33 | . . . . . . 2 2 . . . . . . . . . . 1 1 2 9 2 . 3 3 8 Meltdown 8 | . . . . . . 1 . . . . . . . . . . . 1 . . . 1 . 1 1 3 Destroy 3 | . . . . . . 1 . . . . . . . . . . . . 1 1 . . . . . . Blast 22 | . . . . . . . 2 . . . . . . . . . . . . 1 9 1 . 2 2 5 Melee Attacks 79 | . 12 . . . 5 39 14 . . . . . . . 6 . . . . . . . . 3 . . Impact 79 | . 12 . . . 5 39 14 . . . . . . . 6 . . . . . . . . 3 . . Slashing . | . . . . . . . . . . . . . . . . . . . . . . . . . . . Piercing . | . . . . . . . . . . . . . . . . . . . . . . . . . . . Sneak Attacks 4 | . . . . . . . 4 . . . . . . . . . . . . . . . . . . . Combat Hostiles . | . . . . . . . . . . . . . . . . . . . . . . . . . . . Follow-up Attacks . | . . . . . . . . . . . . . . . . . . . . . . . . . . . Damage Inflicted 35117 | 117 656 647 . 259 321 1795 1346 . 559 1540 1188 556 . 1712 1207 558 689 1540 2290 443 1969 885 15 2271 3370 9184 Guns 2307 | 117 151 73 . 125 14 194 279 . . . . . . . . . 222 22 265 44 . 77 . . 226 498 Cannons 21662 | . 315 173 . . 18 1083 387 . 225 903 846 149 . 423 833 274 463 1471 918 399 1969 686 . 2030 1206 6891 Explosions 10503 | . 187 401 . 134 275 518 147 . 334 637 342 407 . 1289 374 284 . . 1107 . . 122 . 241 1938 1766 Melee 533 | . . . . . . . 533 . . . . . . . . . . . . . . . . . . . Ramming 112 | . 3 . . . 14 . . . . . . . . . . . 4 47 . . . . 15 . . 29 Kinetic 11191 | 64 37 40 . 28 32 649 387 . . 59 236 . . 61 348 107 . 878 707 244 1933 477 . 1212 571 3121 Thermal 13446 | 53 429 206 . 134 . 652 279 . 225 1481 610 149 . 362 485 167 685 615 446 199 36 286 . 818 861 4268 Explosive 9271 | . 187 401 . . 275 420 147 . 334 . 342 407 . 1289 374 284 . . 1107 . . . . . 1938 1766 Electromagnetic 564 | . . . . 97 . 74 . . . . . . . . . . . . 30 . . 122 . 241 . . Impact 533 | . . . . . . . 533 . . . . . . . . . . . . . . . . . . . Slashing . | . . . . . . . . . . . . . . . . . . . . . . . . . . . Piercing . | . . . . . . . . . . . . . . . . . . . . . . . . . . . Highest Corruption 58 | . . . . . . 2 4 . . . . . . . . 17 25 . . . 16 20 9 . 9 58 Average Corruption 17 | . . . . . . 2 3 . . . . . . . . 10 20 . . . 8 19 6 . 3 28 Corruption Purged 4 | . . . . . . . . . . . . . . . . . . . . . . . . . 4 . Corruption Blocked . | . . . . . . . . . . . . . . . . . . . . . . . . . . . Effects 284 | . . . . . . 8 16 . . . . . . . . 7 40 . . . 1 41 2 . 20 149 Message Errors 53 | . . . . . . 1 2 . . . . . . . . . 12 . . . 1 5 1 . 6 25 Matter Fused 71 | . . . . . . 5 4 . . . . . . . . 1 10 . . . . 11 1 . 3 36 Heat Flow Errors 22 | . . . . . . 1 1 . . . . . . . . 2 . . . . . 4 . . 3 11 Energy Discharges 25 | . . . . . . . 2 . . . . . . . . 1 4 . . . . 5 . . 1 12 Parts Rejected 5 | . . . . . . . 2 . . . . . . . . . 1 . . . . . . . . 2 Parts Fused 7 | . . . . . . . 1 . . . . . . . . . 1 . . . . 1 . . . 4 Data Loss (minor) 30 | . . . . . . 1 2 . . . . . . . . . 5 . . . . 6 . . 2 14 Data Loss (major) 18 | . . . . . . . 1 . . . . . . . . 1 2 . . . . 3 . . 4 7 Misfires 9 | . . . . . . . . . . . . . . . . 1 2 . . . . 2 . . . 4 Alerts 11 | . . . . . . . 1 . . . . . . . . . . . . . . 3 . . . 7 Misdirections 6 | . . . . . . . . . . . . . . . . 1 . . . . . 1 . . . 4 Weapon Failures 27 | . . . . . . . . . . . . . . . . . 3 . . . . . . . 1 23 Overload Shots . | . . . . . . . . . . . . . . . . . . . . . . . . . . . Overflow Damage 1404 | . 10 26 . . . 3 175 . . 134 103 . . 85 40 . 26 43 75 . 34 103 . 11 300 236 Projectiles 592 | . . . . . . 3 . . . 30 75 . . 18 29 . 26 28 . . 34 73 . 11 140 125 Explosions 622 | . 10 26 . . . . . . . 104 28 . . 67 11 . . . 75 . . 30 . . 160 111 Melee 190 | . . . . . . . 175 . . . . . . . . . . 15 . . . . . . . . Knockbacks 70 | . . . . . . 2 4 . . . 6 . . 2 3 . . 8 1 2 9 4 . 13 4 12 Impact 5 | . . . . . . . 3 . . . . . . . . . . 1 . . . . . . . 1 Kinetic 59 | . . . . . . 2 . . . . 6 . . 2 3 . . 7 1 2 5 4 . 13 3 11 Secondary 6 | . . . . . . . 1 . . . . . . . . . . . . . 4 . . . 1 . Self-Inflicted Damage 1049 | . 87 20 . 39 . 47 57 . . . 38 . . . 1 . . . 174 . . . . . 49 537 Shots 23 | . 4 1 . 1 . 1 2 . . . 1 . . . 1 . . . 4 . . . . . 1 7 Rammed 1 | 1 . . . . . . . . . . . . . . . . . . . . . . . . . . Targets Rammed 10 | 1 1 . . . 1 . . . . . . . . . . . 1 2 . . . . 2 . . 2 Kicked 8 | . . . . . 1 . . . . . . . . . . . 1 2 . . . . 2 . . 2 Crushed 1 | . 1 . . . . . . . . . . . . . . . . . . . . . . . . . Highest Temperature 578 | . 429 180 . 52 . 134 403 . . 68 309 24 . 36 210 242 339 174 329 132 198 403 224 344 194 578 Average Temperature 107 | . 245 48 . 18 . 13 118 . . 19 127 14 . 18 33 105 125 54 96 33 54 163 69 143 88 194 Received Heat Transfer 2402 | . 60 12 . . 9 396 324 . 81 27 45 . . 141 27 . . 65 168 33 296 10 4 117 4 583 Effects 33 | . 7 . . . . . 7 . . . . . . . . . 3 . 2 . . 2 . 1 . 11 Shutdowns 8 | . 1 . . . . . . . . . . . . . . . . . 2 . . 1 . . . 4 Energy Bleed 3 | . 1 . . . . . . . . . . . . . . . . . . . . 1 . 1 . . Interference 15 | . 5 . . . . . 2 . . . . . . . . . 3 . . . . . . . . 5 Matter Decay 4 | . . . . . . . 3 . . . . . . . . . . . . . . . . . . 1 Short Circuit 1 | . . . . . . . 1 . . . . . . . . . . . . . . . . . . . Damage (minor) 1 | . . . . . . . 1 . . . . . . . . . . . . . . . . . . . Damage (core) 1 | . . . . . . . . . . . . . . . . . . . . . . . . . . 1 Siege Activations . | . . . . . . . . . . . . . . . . . . . . . . . . . . . Martial Activations . | . . . . . . . . . . . . . . . . . . . . . . . . . . . Shielding Activations 1 | . . . . . . . . . . . . . . . . . . . . . . . . . . 1 Total Turns 19 | . . . . . . . . . . . . . . . . . . . . . . . . . . 19 Longest Duration 19 | . . . . . . . . . . . . . . . . . . . . . . . . . . 19 Robots Disrupted . | . . . . . . . . . . . . . . . . . . . . . . . . . . . Combat Hostiles . | . . . . . . . . . . . . . . . . . . . . . . . . . . . Robots Corrupted 7 | . . . . . . . 5 . . . . . . . . . . . . . 1 1 . . . . Combat Hostiles 2 | . . . . . . . 1 . . . . . . . . . . . . . . 1 . . . . Parts Fried 8 | . . . . 1 . . 5 . . . . . . . . . . . . . 2 . . . . . Impact Corruptions 11 | . . . . . . . 8 . . . . . . . . . . 1 . . 2 . . . . . Robots Melted 8 | . . . . . . 1 . . . . . . . . . . . 1 . . . 1 . 1 1 3 Combat Hostiles 7 | . . . . . . 1 . . . . . . . . . . . 1 . . . 1 . 1 1 2 Parts Melted 30 | . 3 1 . . . 1 . . . 2 . . . . . . 2 . . . . 2 . 3 3 13 Heat Transferred 12961 | 125 916 445 . 150 . 1208 666 . 296 1349 740 185 . 444 37 . 481 740 666 300 37 296 . 758 814 2308 Parts Sabotaged 4 | . . . . . . . . . . . . . . . . . . . . . 4 . . . . . Parts Stolen . | . . . . . . . . . . . . . . . . . . . . . . . . . . . Parts Stripped . | . . . . . . . . . . . . . . . . . . . . . . . . . . . Power Chain Reactions 3 | . . . . 1 . 2 . . . . . . . . . . . . . . . . . . . . Alert | -11 -10 -10 -10 -9 -8 -8 -8 -7 -7 -6 -6 -6 -6 -5 -5 -5 -5 -4 -4 -4 -4 -3 -3 -2 -1 -1 ------- Run | Yrd Mat Min Exi Min Mat Gar Mat Fac DSF Fac Low Low Dat Pro Fac Was Fac Fac Upp Upp War Pro Res Res Acc Com Maximum Alert Level 4 | . 1 . . . . 3 2 1 1 . . . . . 2 . . . . . . . . 1 3 4 Low Security (%) 59 | 100 90 100 . 100 100 26 . 67 56 100 . . . . 10 100 100 100 . . . . 100 84 32 9 Level 1 9 | . 9 . . . . 22 . 32 43 . . . . . 56 . . . . . . . . 15 12 . Level 2 18 | . . . . . . 21 100 . . . . . . . 33 . . . . . . . . . 3 48 Level 3 10 | . . . . . . 29 . . . . . . . . . . . . . . . . . . 52 27 Level 4 2 | . . . . . . . . . . . . . . . . . . . . . . . . . . 14 Level 5 . | . . . . . . . . . . . . . . . . . . . . . . . . . . . High Security . | . . . . . . . . . . . . . . . . . . . . . . . . . . . Max Security . | . . . . . . . . . . . . . . . . . . . . . . . . . . . Sterilizations 1 | . . . . . . . . . 1 . . . . . . . . . . . . . . . . . Peak Influence 1190 | 10 230 126 . 18 150 1085 627 221 314 164 . . . . 607 72 71 115 . . . . 6 377 815 1190 Initial 528 | . . 51 . . . 71 528 221 96 164 . . . . 512 72 22 . . . . . . . 211 483 Average 269 | . 104 50 . . 70 470 533 180 186 101 . . . . 370 32 15 53 . . . . . 57 500 671 Influence Increases 8673 | 20 421 349 . 18 210 1114 420 7 238 362 176 120 . 260 734 34 167 431 247 105 155 125 22 467 949 1522 Destroy 0b10 Robot/C 3880 | . 240 200 . . 80 520 220 . 180 120 140 100 . 200 160 . 80 240 200 80 120 80 . 160 340 420 Destroy 0b10 Robot/NC 275 | 20 25 . . 15 20 . 45 . 5 . . . . 10 15 . 10 25 5 . 5 10 . 5 35 25 Destroy Leader 726 | . 56 40 . . 26 50 68 . 20 50 20 20 . 20 30 . 10 56 20 10 . 20 . 50 60 100 Allied During Kill 169 | . . . . . 30 32 10 . 11 8 16 . . . . . . 12 22 . . . . . 28 . Successful Hack 171 | . . . . . 9 28 22 7 . 72 . . . . . . 5 7 . . . . . . 21 . Disable Machine 315 | . 15 15 . . 15 30 . . 15 90 . . . . 15 . 15 . . . . . . 15 60 30 Anti-Garrison Action 350 | . . . . . . 300 . . . . . . . . . . . . . . . . . . . 50 Destroy Structure 1422 | . 55 49 . 3 30 139 25 . 7 22 . . . . 64 34 32 76 . . . . 22 102 330 432 Advance Influence 450 | . . . . . . . . . . . . . . . 450 . . . . . . . . . . . Partial Spotted 15 | . . . . . . . . . . . . . . . . . . 15 . . . . . . . . Lose Combat Pursuer 900 | . 30 45 . . . 15 30 . . . . . . 30 . . 15 . . 15 30 15 . 135 75 465 Influence Decreases 7570 | 20 288 428 54 18 100 139 1017 357 62 536 261 175 . 161 627 208 197 347 331 107 108 172 22 114 546 1175 Entered New Map 1933 | . . 82 54 . . 39 557 267 42 150 52 11 . . 37 134 10 2 32 2 . 47 . . 142 273 Time Decay 4701 | 20 288 336 . 18 100 . 380 90 . 386 164 164 . 154 380 64 157 315 259 105 58 125 18 104 374 642 Search Patrol Dispatched 200 | . . . . . . . . . . . . . . . 200 . . . . . . . . . . . Lost Part 536 | . . 10 . . . 20 60 . . . 5 . . 7 10 10 30 10 40 . 50 . 4 10 10 260 Lost Ally 200 | . . . . . . 80 20 . 20 . 40 . . . . . . 20 . . . . . . 20 . Squads Dispatched 39 | . 2 . . . 1 . 2 . 1 4 . . . . 2 . 1 4 . . . . 1 1 9 11 Investigation 2 | . 1 . . . . . . . . 1 . . . . . . . . . . . . . . . . Extermination 15 | . . . . . . . . . . 2 . . . . 1 . 1 3 . . . . 1 . 1 6 Reinforcement 16 | . 1 . . . . . 1 . 1 1 . . . . 1 . . 1 . . . . . 1 5 4 Assault 2 | . . . . . . . 1 . . . . . . . . . . . . . . . . . . 1 Garrison 4 | . . . . . 1 . . . . . . . . . . . . . . . . . . . 3 . Intercept . | . . . . . . . . . . . . . . . . . . . . . . . . . . . Searches Triggered 2 | . . . . . . . . . . . . . . . 2 . . . . . . . . . . . Construction Impeded 4 | . . . . . . . 1 . . 1 . . . . 1 . . . . . . . . . 1 . Haulers Reinforced 1 | . . . . . . . . . . . . . . . . . . 1 . . . . . . . . Active Scanning Responses . | . . . . . . . . . . . . . . . . . . . . . . . . . . . Cargo Convoy Interrupts . | . . . . . . . . . . . . . . . . . . . . . . . . . . . Stealth | -11 -10 -10 -10 -9 -8 -8 -8 -7 -7 -6 -6 -6 -6 -5 -5 -5 -5 -4 -4 -4 -4 -3 -3 -2 -1 -1 --------- Run | Yrd Mat Min Exi Min Mat Gar Mat Fac DSF Fac Low Low Dat Pro Fac Was Fac Fac Upp Upp War Pro Res Res Acc Com Distress Signals 19 | . . . . . 2 . 4 . . . . . . . . . 1 . . . . . . 4 2 6 Communications Jammed . | . . . . . . . . . . . . . . . . . . . . . . . . . . . Distress Signals . | . . . . . . . . . . . . . . . . . . . . . . . . . . . Times Spotted 325 | . 19 12 . . 9 28 19 . 7 6 8 6 . 13 9 4 8 13 11 8 42 5 3 19 29 47 Peak Tracking Total 36 | . 3 3 . . 4 4 5 . 4 2 4 3 . 5 5 5 3 4 7 4 14 2 2 4 6 36 Tactical Retreats 24 | . 2 1 . . . 1 2 . . . . . . 2 . 1 1 . . 1 1 1 . 3 3 5 Traps | -11 -10 -10 -10 -9 -8 -8 -8 -7 -7 -6 -6 -6 -6 -5 -5 -5 -5 -4 -4 -4 -4 -3 -3 -2 -1 -1 ------- Run | Yrd Mat Min Exi Min Mat Gar Mat Fac DSF Fac Low Low Dat Pro Fac Was Fac Fac Upp Upp War Pro Res Res Acc Com Traps Triggered 12 | . 1 . . . . 3 . . 1 1 . . . . 1 . 2 . . . . . . . . 3 Indirectly . | . . . . . . . . . . . . . . . . . . . . . . . . . . . Trap Hack Attempts . | . . . . . . . . . . . . . . . . . . . . . . . . . . . Triggered . | . . . . . . . . . . . . . . . . . . . . . . . . . . . Disarmed . | . . . . . . . . . . . . . . . . . . . . . . . . . . . Reprogrammed . | . . . . . . . . . . . . . . . . . . . . . . . . . . . Reused 4 | . . . . . . . . . . . . . . . . . . . 1 1 2 . . . . . Traps Extracted . | . . . . . . . . . . . . . . . . . . . . . . . . . . . Installed 4 | . . . . . . . . . . . . . . . . . . . 1 1 2 . . . . . Triggered 4 | . . . . . . . . . . . . . . . . . . . 1 1 2 . . . . . Most Traps Carried 3 | . . . . . . . . . . . . . . . . . . . 3 3 2 . . . . . Machines | -11 -10 -10 -10 -9 -8 -8 -8 -7 -7 -6 -6 -6 -6 -5 -5 -5 -5 -4 -4 -4 -4 -3 -3 -2 -1 -1 ---------- Run | Yrd Mat Min Exi Min Mat Gar Mat Fac DSF Fac Low Low Dat Pro Fac Was Fac Fac Upp Upp War Pro Res Res Acc Com Machines Disabled 32 | . 1 1 . . 1 8 . . 1 6 . 1 . . 1 . 1 . 1 . . . . 1 4 5 Max in Single Turn 5 | . 1 1 . . . 3 . . . 5 . 1 . . 1 . 1 . 1 . . . . 1 1 2 Garrison Access 1 | . . . . . . . . . . . . . . . . . . . . . . . . 1 . . Garrison Relay 4 | . . . . . . 4 . . . . . . . . . . . . . . . . . . . . Phase Generator 1 | . . . . . . . . . . . . . . . . . . . . . . . . . . 1 Machines Repaired . | . . . . . . . . . . . . . . . . . . . . . . . . . . . Machines Dismantled . | . . . . . . . . . . . . . . . . . . . . . . . . . . . Machines Sabotaged . | . . . . . . . . . . . . . . . . . . . . . . . . . . . Overloaded Fab Kills . | . . . . . . . . . . . . . . . . . . . . . . . . . . . Hacking | -11 -10 -10 -10 -9 -8 -8 -8 -7 -7 -6 -6 -6 -6 -5 -5 -5 -5 -4 -4 -4 -4 -3 -3 -2 -1 -1 --------- Run | Yrd Mat Min Exi Min Mat Gar Mat Fac DSF Fac Low Low Dat Pro Fac Was Fac Fac Upp Upp War Pro Res Res Acc Com Machines Accessed 56 | . 3 . 2 . 2 2 4 2 . 11 2 . 4 . 3 . 1 3 . . 7 . . 2 4 4 Terminals 26 | . 3 . . . 1 2 3 2 . 6 . . . . 1 . 1 1 . . . . . . 3 3 Fabricators 1 | . . . . . . . . . . 1 . . . . . . . . . . . . . . . . Repair Stations 3 | . . . . . . . 1 . . 1 . . . . 1 . . . . . . . . . . . Recycling Units 5 | . . . . . . . . . . 2 . . . . 1 . . 1 . . . . . . . 1 Scanalyzers 2 | . . . . . . . . . . 1 . . . . . . . 1 . . . . . . . . Garrison Access 4 | . . . . . 1 . . . . . . . . . . . . . . . . . . 2 1 . Total Hacks 156 | . 6 . 24 . 4 2 14 4 . 15 5 . 25 . 9 . 2 6 . . 25 . . 2 5 8 Successful 117 | . 1 . 24 . 3 2 9 2 . 7 5 . 25 . 6 . 2 4 . . 25 . . . 1 1 Failed 39 | . 5 . . . 1 . 5 2 . 8 . . . . 3 . . 2 . . . . . 2 4 7 Catastrophic 11 | . 2 . . . . . 2 . . 4 . . . . . . . . . . . . . 1 1 1 Database Lockouts . | . . . . . . . . . . . . . . . . . . . . . . . . . . . Manual 36 | . 5 . 1 . 3 . 8 2 . 5 . . . . 2 . 2 1 . . 1 . . . 3 3 Terminals 51 | . 6 . . . 3 2 10 4 . 9 . . . . 2 . 2 2 . . . . . . 4 7 Fabricators 1 | . . . . . . . . . . 1 . . . . . . . . . . . . . . . . Repair Stations 11 | . . . . . . . 4 . . 1 . . . . 6 . . . . . . . . . . . Recycling Units 6 | . . . . . . . . . . 3 . . . . 1 . . 1 . . . . . . . 1 Scanalyzers 4 | . . . . . . . . . . 1 . . . . . . . 3 . . . . . . . . Garrison Access 4 | . . . . . 1 . . . . . . . . . . . . . . . . . . 2 1 . Terminal Hacks 95 | . . . 24 . 1 2 4 2 . 2 5 . 25 . . . 1 2 . . 25 . . . 1 1 Record 48 | . . . 23 . . . . . . . 4 . 11 . . . . . . . 10 . . . . . Part Schematic 8 | . . . . . . . . . . . . . 8 . . . . . . . . . . . . . Robot Schematic 3 | . . . . . . . . . . . . . 3 . . . . . . . . . . . . . Robot Analysis 6 | . . . . . 1 . 3 1 . . . . . . . . . 1 . . . . . . . . Prototype ID Bank 18 | . . . . . . . . . . . . . 3 . . . . . . . 15 . . . . . Open Door 2 | . . . . . . . . . . . 1 . . . . . . . . . . . . . . 1 Open DSF 2 | . . . . . . . . 1 . 1 . . . . . . . . . . . . . . . . Branch Access Points 1 | . . . . . . . . . . . . . . . . . . 1 . . . . . . . . Emergency Access Points 1 | . . . . . . 1 . . . . . . . . . . . . . . . . . . . . Terminal Index 2 | . . . . . . . . . . 1 . . . . . . 1 . . . . . . . . . Locate Traps 2 | . . . . . . . 1 . . . . . . . . . . . . . . . . . 1 . Patrol Navigation 1 | . . . . . . 1 . . . . . . . . . . . . . . . . . . . . Proto ID Catalog 1 | . . . 1 . . . . . . . . . . . . . . . . . . . . . . . Fabricator Hacks . | . . . . . . . . . . . . . . . . . . . . . . . . . . . Repair Station Hacks 9 | . . . . . . . 4 . . . . . . . 5 . . . . . . . . . . . Scan Component 5 | . . . . . . . 2 . . . . . . . 3 . . . . . . . . . . . Repair 4 | . . . . . . . 2 . . . . . . . 2 . . . . . . . . . . . Recycling Unit Hacks 3 | . . . . . . . . . . 2 . . . . 1 . . . . . . . . . . . Retrieve Components 3 | . . . . . . . . . . 2 . . . . 1 . . . . . . . . . . . Scanalyzer 3 | . . . . . . . . . . 1 . . . . . . . 2 . . . . . . . . Retrieve Study 3 | . . . . . . . . . . 1 . . . . . . . 2 . . . . . . . . Garrison Access Hacks 1 | . . . . . 1 . . . . . . . . . . . . . . . . . . . . . Unlock Access 1 | . . . . . 1 . . . . . . . . . . . . . . . . . . . . . Unauthorized Hacks 6 | . 1 . . . 1 . 1 . . 2 . . . . . . 1 . . . . . . . . . Terminals 5 | . 1 . . . 1 . 1 . . 1 . . . . . . 1 . . . . . . . . . Assimilate 1 | . . . . . . . . . . 1 . . . . . . . . . . . . . . . . Botnet 4 | . 1 . . . 1 . 1 . . . . . . . . . 1 . . . . . . . . . Fabricators 1 | . . . . . . . . . . 1 . . . . . . . . . . . . . . . . Liberate 1 | . . . . . . . . . . 1 . . . . . . . . . . . . . . . . Repair Stations . | . . . . . . . . . . . . . . . . . . . . . . . . . . . Recycling Units . | . . . . . . . . . . . . . . . . . . . . . . . . . . . Scanalyzers . | . . . . . . . . . . . . . . . . . . . . . . . . . . . Garrison Access . | . . . . . . . . . . . . . . . . . . . . . . . . . . . Data Cores Recovered . | . . . . . . . . . . . . . . . . . . . . . . . . . . . Used . | . . . . . . . . . . . . . . . . . . . . . . . . . . . Hacking Detections 32 | . 3 . . . 1 1 4 2 . 8 . . . . 2 . 1 1 . . . . . 2 3 4 Full Trace Events 1 | . . . . . . . . . . 1 . . . . . . . . . . . . . . . . Feedback Events . | . . . . . . . . . . . . . . . . . . . . . . . . . . . Feedback Blocked . | . . . . . . . . . . . . . . . . . . . . . . . . . . . Robot Schematics Acquired 3 | . . . . . . . . . . . . . 3 . . . . . . . . . . . . . Robots Built . | . . . . . . . . . . . . . . . . . . . . . . . . . . . Authchips . | . . . . . . . . . . . . . . . . . . . . . . . . . . . Time . | . . . . . . . . . . . . . . . . . . . . . . . . . . . Total Robot Build Rating . | . . . . . . . . . . . . . . . . . . . . . . . . . . . Part Schematics Acquired 8 | . . . . . . . . . . . . . 8 . . . . . . . . . . . . . Parts Built . | . . . . . . . . . . . . . . . . . . . . . . . . . . . Authchips . | . . . . . . . . . . . . . . . . . . . . . . . . . . . Time . | . . . . . . . . . . . . . . . . . . . . . . . . . . . Total Part Build Rating . | . . . . . . . . . . . . . . . . . . . . . . . . . . . Part Studies Acquired 3 | . . . . . . . . . . 1 . . . . . . . 2 . . . . . . . . Parts Repaired 4 | . . . . . . . 2 . . . . . . . 2 . . . . . . . . . . . Time 175 | . . . . . . . 76 . . . . . . . 99 . . . . . . . . . . . Parts Recycled . | . . . . . . . . . . . . . . . . . . . . . . . . . . . Recycled Matter . | . . . . . . . . . . . . . . . . . . . . . . . . . . . Retrieved Matter . | . . . . . . . . . . . . . . . . . . . . . . . . . . . Retrieved Components 5 | . . . . . . . . . . 2 . . . . 3 . . . . . . . . . . . Parts Scanalyzed . | . . . . . . . . . . . . . . . . . . . . . . . . . . . Part Schematics Acquired . | . . . . . . . . . . . . . . . . . . . . . . . . . . . Parts Damaged . | . . . . . . . . . . . . . . . . . . . . . . . . . . . Bothacking | -11 -10 -10 -10 -9 -8 -8 -8 -7 -7 -6 -6 -6 -6 -5 -5 -5 -5 -4 -4 -4 -4 -3 -3 -2 -1 -1 ------------ Run | Yrd Mat Min Exi Min Mat Gar Mat Fac DSF Fac Low Low Dat Pro Fac Was Fac Fac Upp Upp War Pro Res Res Acc Com Used RIF Installer . | . . . . . . . . . . . . . . . . . . . . . . . . . . . Robots Hacked 1 | . . . . . . . . . . . . . . . . . . . . . . . 1 . . . Non-combat 1 | . . . . . . . . . . . . . . . . . . . . . . . 1 . . . Combat . | . . . . . . . . . . . . . . . . . . . . . . . . . . . Robot Hacks Applied 2 | . . . . . . . . . . . . . . . . . . . . . . . 2 . . . find_dsf 2 | . . . . . . . . . . . . . . . . . . . . . . . 2 . . . Relay Couplers Released 21 | . . . . . . 21 . . . . . . . . . . . . . . . . . . . . Machine Destruction 17 | . . . . . . 17 . . . . . . . . . . . . . . . . . . . . Programmers 4 | . . . . . . 4 . . . . . . . . . . . . . . . . . . . . Fabnet Peak Effective % . | . . . . . . . . . . . . . . . . . . . . . . . . . . . Robots Rewired 4 | . . . . . . 2 . . . . . . . . . . . . 2 . . . . . . . Allies Hacked . | . . . . . . . . . . . . . . . . . . . . . . . . . . . Hacks Repelled . | . . . . . . . . . . . . . . . . . . . . . . . . . . . Allies | -11 -10 -10 -10 -9 -8 -8 -8 -7 -7 -6 -6 -6 -6 -5 -5 -5 -5 -4 -4 -4 -4 -3 -3 -2 -1 -1 -------- Run | Yrd Mat Min Exi Min Mat Gar Mat Fac DSF Fac Low Low Dat Pro Fac Was Fac Fac Upp Upp War Pro Res Res Acc Com Total Allies 14 | . . . . 4 . 2 . . . 3 3 . . . . . . . 2 . . . . . . . Largest Group 4 | . . . . 4 4 3 1 . . 3 3 1 . . . . . . 2 2 . . . . . . Highest-Rated Group 94 | . . . . 71 71 45 24 . . 87 60 20 . . . . . . 94 94 . . . . . . Highest-Rated Ally 47 | . . . . 31 31 24 24 . . 29 20 20 . . . . . . 47 47 . . . . . . Initial Warlord ECA Mod 16 | . . . . . . . 8 7 7 16 16 16 16 15 15 15 15 14 14 14 14 13 13 12 11 11 Total Orders 12 | . . . . . 3 5 4 . . . . . . . . . . . . . . . . . . . STAY 6 | . . . . . 1 3 2 . . . . . . . . . . . . . . . . . . . ROAM 1 | . . . . . 1 . . . . . . . . . . . . . . . . . . . . . FOLLOW 5 | . . . . . 1 2 2 . . . . . . . . . . . . . . . . . . . Ally Attacks 167 | . . . . . 22 31 18 . 15 . 12 . . . . . . 22 31 2 . . . . 14 . Total Damage 4821 | . . . . . 177 459 319 . 680 . 363 . . . . . . 1225 921 34 . . . . 643 . Kills 31 | . . . . . 4 4 3 . 5 . 1 . . . . . . 9 4 . . . . . 1 . Allies Corrupted . | . . . . . . . . . . . . . . . . . . . . . . . . . . . Allies Melted 1 | . . . . . . . . . . . . . . . . . . . . . . . . . . 1 Turrets Deployed 3 | . . . . . . . . . 1 . . . . . . . . 1 . . . . . . 1 . Intel | -11 -10 -10 -10 -9 -8 -8 -8 -7 -7 -6 -6 -6 -6 -5 -5 -5 -5 -4 -4 -4 -4 -3 -3 -2 -1 -1 ------- Run | Yrd Mat Min Exi Min Mat Gar Mat Fac DSF Fac Low Low Dat Pro Fac Was Fac Fac Upp Upp War Pro Res Res Acc Com Active Infowar (turns) 12594 | 83 765 216 . . . . . . . 501 565 614 107 728 786 172 691 885 1525 1073 907 803 378 79 866 850 Sensors 5140 | . . 2 . . . . . . . . 452 . . . . . . . 1525 1073 907 803 378 . . . Terrain 7089 | . 245 . . . . . . . . 501 565 614 107 728 786 172 691 885 . . . . . 79 866 850 Seismic 817 | 83 520 214 . . . . . . . . . . . . . . . . . . . . . . . . Robot Analysis Total 6 | . . . . . 1 . 3 1 . . . . . . . . . 1 . . . . . . . . Derelict Logs Recovered 9 | . . 1 . 1 . . . . . . 1 1 . 1 . . . . 3 1 . . . . . . Drone Launches . | . . . . . . . . . . . . . . . . . . . . . . . . . . . Drone Recoveries . | . . . . . . . . . . . . . . . . . . . . . . . . . . . Exploration | -11 -10 -10 -10 -9 -8 -8 -8 -7 -7 -6 -6 -6 -6 -5 -5 -5 -5 -4 -4 -4 -4 -3 -3 -2 -1 -1 ------------- Run | Yrd Mat Min Exi Min Mat Gar Mat Fac DSF Fac Low Low Dat Pro Fac Was Fac Fac Upp Upp War Pro Res Res Acc Com Turns Passed 23250 | 136 853 1007 436 620 332 1317 885 185 218 912 797 691 107 844 887 172 774 1105 2059 1210 1215 849 378 1841 866 2554 Spaces Moved 13681 | 64 399 586 248 313 168 743 497 148 132 593 513 491 81 540 476 118 435 529 1173 584 701 458 172 1261 569 1689 Core 28 | 14 . 8 . . . . . . . . . . . . . . . . . . . . . . . 6 Treads 752 | 50 399 153 147 . . . 3 . . . . . . . . . . . . . . . . . . . Legs 12476 | . . . 101 313 168 743 494 148 132 593 513 491 81 540 476 118 435 529 1173 584 701 458 172 1261 569 1683 Wheels 425 | . . 425 . . . . . . . . . . . . . . . . . . . . . . . . Hover . | . . . . . . . . . . . . . . . . . . . . . . . . . . . Flight . | . . . . . . . . . . . . . . . . . . . . . . . . . . . Fastest Speed 50 | 50 160 110 160 190 120 120 110 115 115 133 133 133 133 133 133 133 133 130 130 125 104 110 182 110 122 50 Average Speed 141 | 148 160 140 172 190 120 120 117 115 128 133 133 133 133 133 133 133 155 179 154 199 149 167 182 128 122 120 Slowest Speed 550 | 200 160 550 190 190 120 120 320 115 250 140 133 133 133 133 133 133 210 223 216 210 205 182 182 188 122 260 Overloaded Moves . | . . . . . . . . . . . . . . . . . . . . . . . . . . . Propulsion Burnouts . | . . . . . . . . . . . . . . . . . . . . . . . . . . . Robots Hopped . | . . . . . . . . . . . . . . . . . . . . . . . . . . . Potential Cave-ins 9 | . . . . . . . . . . . . . . . . . . . . . . . 4 . 2 3 Cave-ins Triggered 2 | . . . . . . . . . . . . . . . . . . . . . . . 2 . . . Exploration Rate (%) 51 | 5 61 96 61 65 15 93 39 3 84 18 69 63 68 73 21 92 11 12 95 72 81 66 6 51 19 55 Regions Visited 26 Branch Regions 12 Pre-discovered Areas 6 | . . . 1 . . . . . . . 1 . 1 1 . . . . . 1 1 . . . . . Known Exits Taken 15 | . . . . . 1 . . 1 . 1 1 1 1 1 . . 1 1 1 1 1 1 1 . 1 . Unknown Exits Taken 7 | 1 1 1 1 1 . . 1 . . . . . . . . . . . . . . . . 1 . . Scrap Searched 18 | . . 2 . 2 . . . . . . 1 1 . 5 . . . . 5 1 . 1 . . . . Spaces Dug 265 | . 26 14 . . 4 37 18 . . 2 8 36 . 1 16 . 10 9 3 . . 1 8 14 26 32 Terrain Destroyed 1110 | . 53 68 . 3 32 86 26 . 6 31 40 69 . 123 39 26 16 38 44 11 21 18 18 37 134 171 Melee 32 | . 6 . . . 4 12 1 . . . . . . . 6 . . . . . . . . 3 . . Projectile 304 | . . . . . . . . . . 5 7 2 . 8 20 1 16 38 19 11 21 18 18 34 34 52 AOE 774 | . 47 68 . 3 28 74 25 . 6 26 33 67 . 115 13 25 . . 25 . . . . . 100 119 Terrain Rammed . | . . . . . . . . . . . . . . . . . . . . . . . . . . . Walls Destroyed . | . . . . . . . . . . . . . . . . . . . . . . . . . . . Machines Disabled . | . . . . . . . . . . . . . . . . . . . . . . . . . . . Actions | -11 -10 -10 -10 -9 -8 -8 -8 -7 -7 -6 -6 -6 -6 -5 -5 -5 -5 -4 -4 -4 -4 -3 -3 -2 -1 -1 --------- Run | Yrd Mat Min Exi Min Mat Gar Mat Fac DSF Fac Low Low Dat Pro Fac Was Fac Fac Upp Upp War Pro Res Res Acc Com Total 16162 | 86 539 727 259 332 280 977 712 163 179 677 584 512 80 625 666 123 492 621 1366 607 824 508 214 1401 647 1961 Wait 814 | . 62 91 1 5 86 38 104 . 11 24 37 3 . 40 101 . 7 9 112 1 15 11 11 10 5 30 Move 13656 | 63 398 585 247 312 168 742 496 147 131 592 512 490 80 539 476 117 434 528 1172 583 700 457 170 1260 568 1689 Hop . | . . . . . . . . . . . . . . . . . . . . . . . . . . . Pick Up 173 | 5 8 7 4 3 3 7 18 4 4 10 2 2 . 3 7 1 4 10 13 3 12 3 2 17 3 18 Fast Attach 115 | 7 3 3 . 1 1 3 10 2 4 3 1 . . . 5 1 4 4 3 2 9 2 2 17 3 25 Attach 81 | 1 . . 2 . 3 3 6 1 . 2 1 1 . 1 2 . 4 4 4 1 4 7 1 3 2 28 Detach 24 | 1 1 1 . . . . 1 . 2 . . . . . . . . 2 . . 4 2 1 1 . 8 Swap 207 | . 7 5 1 . 6 37 14 4 6 7 6 7 . 11 17 . 7 5 14 3 20 2 . 13 4 11 Drop 223 | . 9 3 4 4 1 17 11 5 15 13 2 1 . 4 13 . 5 12 11 4 34 . . 34 4 17 Fire 750 | 8 38 32 . 7 6 70 38 . 6 26 23 8 . 27 39 4 26 45 32 9 24 24 24 43 58 133 Melee 79 | . 12 . . . 5 39 14 . . . . . . . 6 . . . . . . . . 3 . . Ram . | . . . . . . . . . . . . . . . . . . . . . . . . . . . Kick 8 | . . . . . 1 . . . . . . . . . . . 1 2 . . . . 2 . . 2 Crush 2 | 1 1 . . . . . . . . . . . . . . . . . . . . . . . . . Escape Stasis 7 | . . . . . . 6 . . . . . . . . . . . . . . . . 1 . . . Rewire 19 | . . . . . . 15 . . . . . . . . . . . . 4 . . . . . . . Trap 4 | . . . . . . . . . . . . . . . . . . . 1 1 2 . . . . . Miscellaneous . | . . . . . . . . . . . . . . . . . . . . . . . . . . . Route ------- -11/Scrapyard -10/Materials (discovered 2 exits: [*Mat] / [*Min]) -10/Mines (discovered 3 exits: [*Mat x2] / *Exi) -10/Exiles -9/Mines -8/Materials -8/Garrison (discovered 3 exits: *Mat x3) -8/Materials -7/Factory -7/DSF -6/Factory -6/Lower Caves -6/Lower Caves (discovered 2 exits: *Fac / *Dat) -6/Data Miner -5/Proximity Caves -5/Factory -5/Waste -5/Factory -4/Factory (discovered 5 exits: *Upp x2 / *Ext x2 / Arm) -4/Upper Caves -4/Upper Caves -4/Warlord -3/Proximity Caves -3/Research (discovered 4 exits: *Res x2 / Tes x2) -2/Research (discovered 2 exits: *Acc / *Qua) -1/Access -1/Command (discovered 2 exits: Sur x2) History --------- Turn | Location | Event 17 | -11/Scrapyard | Discovered new exit (range 14) 137 | -11/Scrapyard | Entered Materials 329 | -10/Materials | Build established: Mutant 513 | -10/Materials | Discovered new exit (range 9) 786 | -10/Materials | Discovered new exit (range 16) 990 | -10/Materials | Entered Mines 991 | -10/Mines | Assembled infested the area 1283 | -10/Mines | Learned Materials non-interactive machine intel 1610 | -10/Mines | Discovered new exit (range 12) 1732 | -10/Mines | Deemed a non-threat by the Exiles lab entrance 1734 | -10/Mines | Discovered new exit (range 5) 1775 | -10/Mines | Discovered new exit (range 5) 1807 | -10/Mines | Found a damaged Exp. Sensor Array with a note attached 1810 | -10/Mines | Found Prototype Device 1810 | -10/Mines | Identified Exp. Sensor Array 1997 | -10/Mines | Entered Exiles 2036 | -10/Exiles | Met 8R-AWN 2063 | -10/Exiles | Met EX-HEX 2133 | -10/Exiles | Learned location of Zion (-7) 2159 | -10/Exiles | Met EX-BIN 2181 | -10/Exiles | Aligned with FarCom system 2183 | -10/Exiles | Given EX-Vault access code 2223 | -10/Exiles | Opened EX-Vault 2238 | -10/Exiles | Found Deploy-a-Sentry 2240 | -10/Exiles | Found Deploy-a-Sentry 2246 | -10/Exiles | Found Deploy-a-Sentry 2289 | -10/Exiles | Warned to stay clear of 0b10 Research branches 2348 | -10/Exiles | Met EX-DEC 2416 | -10/Exiles | Discovered new exit (range 10) 2433 | -10/Exiles | Left Exiles lab with Deploy-a-Sentry 2433 | -10/Exiles | Entered Mines 2720 | -9/Mines | Assisted by bots powering up and referring to "LRC-V3" 2823 | -9/Mines | Learned Materials terminal intel 2951 | -9/Mines | Discovered new exit (range 9) 2994 | -9/Mines | Received a Mining Laser from a helpful Derelict 3053 | -9/Mines | Entered Materials 3053 | -8/Materials | Accompanied by 4 allies 3053 | -8/Materials | Evolved 4 slots: Propulsion x2, Utility x2 3054 | -8/Materials | Loaded intel: 50 non-interactive machine locations 3055 | -8/Materials | Loaded intel: 12 terminal locations 3254 | -8/Materials | Garrison activated, responded to threat 3385 | -8/Materials | Identified exit to Garrison 3385 | -8/Materials | Entered Garrison 3385 | -8/Garrison | Accompanied by 3 allies 3497 | -8/Garrison | Triggered checkpoint 3599 | -8/Garrison | Triggered checkpoint 3679 | -8/Garrison | Lost 3 allies 3845 | -8/Garrison | Garrison Relay disabled 4009 | -8/Garrison | Discovered new exit (range 15) 4179 | -8/Garrison | Triggered checkpoint 4241 | -8/Garrison | Discovered new exit (range 12) 4277 | -8/Garrison | Triggered checkpoint 4301 | -8/Garrison | Garrison Relay disabled 4307 | -8/Garrison | Garrison Relay disabled 4367 | -8/Garrison | Triggered checkpoint 4487 | -8/Garrison | Discovered new exit (range 10) 4589 | -8/Garrison | Triggered checkpoint 4642 | -8/Garrison | Garrison Relay disabled 4702 | -8/Garrison | Entered Materials 4702 | -8/Materials | Accompanied by 1 ally 4891 | -8/Materials | Build established: Scavenger-Mutant 5014 | -8/Materials | Lost 6 parts (1p3n1u1w) 5137 | -8/Materials | Discovered new exit (range 15) 5363 | -8/Materials | Repaired Lgt. Angular Momentum Engine 5391 | -8/Materials | Repaired Lrg. Storage Unit 5502 | -8/Materials | First assault squad dispatched 5587 | -8/Materials | Entered Factory 5587 | -7/Factory | Evolved 2 slots: Utility x2 5669 | -7/Factory | Identified exit to DSF 5772 | -7/Factory | Entered DSF 5789 | -7/DSF | DAS Turret deployed 5801 | -7/DSF | Additional patrols routed to DSF 5934 | -7/DSF | Sterilization system engaged 5954 | -7/DSF | Ambient heat levels rising (+10) 5969 | -7/DSF | Ambient heat levels rising (+10) 5972 | -7/DSF | Discovered new exit (range 14) 5984 | -7/DSF | Ambient heat levels rising (+10) 5990 | -7/DSF | Entered Factory 5990 | -6/Factory | Evolved 2 slots: Propulsion x1, Utility x1 6132 | -6/Factory | Build established: Mutant 6424 | -6/Factory | Murdered 3 allies 6693 | -6/Factory | Build established: Skirmisher 6873 | -6/Factory | Discovered new exit (range 8) 6885 | -6/Factory | Identified exit to Lower Caves 6902 | -6/Factory | Entered Lower Caves 6919 | -6/Lower Caves | Met a Warlord Commander 6920 | -6/Lower Caves | Learned location of Warlord (-4) 6921 | -6/Lower Caves | Warlord Commander delivered Encrypted Comm Array 7045 | -6/Lower Caves | Entered an active Warlord outpost 7052 | -6/Lower Caves | A Commander dispatched an escort 7074 | -6/Lower Caves | Learned Extension trap positions 7074 | -6/Lower Caves | Learned Factory stockpile data 7074 | -6/Lower Caves | Learned Factory garrison access intel 7266 | -6/Lower Caves | Encountered a Warlord checkpoint 7288 | -6/Lower Caves | Learned Factory interactive machine intel 7606 | -6/Lower Caves | Discovered new exit (range 11) 7617 | -6/Lower Caves | Identified exit to Lower Caves 7658 | -6/Lower Caves | Build established: Mutant 7699 | -6/Lower Caves | Entered another Lower Caves area 7699 | -6/Lower Caves | Accompanied by 1 ally 7700 | -6/Lower Caves | Commander's escort returned to base 7729 | -6/Lower Caves | Discovered new exit (range 11) 7744 | -6/Lower Caves | Identified exit to Factory 7988 | -6/Lower Caves | Learned Factory terminal intel 8286 | -6/Lower Caves | Attacked by a delusional Derelict stockpiling parts 8366 | -6/Lower Caves | Discovered new exit (range 7) 8373 | -6/Lower Caves | Identified exit to Data Miner 8390 | -6/Lower Caves | Entered Data Miner 8390 | -6/Data Miner | Discovered new exit (range 6) 8416 | -6/Data Miner | Met Data Miner 8440 | -6/Data Miner | Learned location of Section 7 (-2) 8440 | -6/Data Miner | Acquired the access code to Warlord's prototype stash 8462 | -6/Data Miner | Received God Mode back door access code from Data Miner 8496 | -6/Data Miner | Identified exit to Proximity Caves 8497 | -6/Data Miner | Entered Proximity Caves 8499 | -5/Proximity Caves | Spotter reported a threat 8500 | -5/Proximity Caves | Spotter reported a threat 8563 | -5/Proximity Caves | Spotter reported a threat 8955 | -5/Proximity Caves | Spotted B-75 Beast 9152 | -5/Proximity Caves | Attracted the attention of an 0b10 checkpoint 9235 | -5/Proximity Caves | Discovered exit to Factory (range 15) 9341 | -5/Proximity Caves | Entered Factory 9341 | -5/Factory | Evolved 2 slots: Power x1, Utility x1 9343 | -5/Factory | Loaded intel: 54 interactive machine locations 9344 | -5/Factory | Loaded intel: 26 terminal locations 9345 | -5/Factory | Loaded intel: 4 garrison access locations 9563 | -5/Factory | Repaired Imp. Terrain Scanner 9625 | -5/Factory | Repaired Broken Lgt. Armored Exoskeleton 9641 | -5/Factory | Search patrols dispatched 9798 | -5/Factory | Discovered new exit (range 11) 9812 | -5/Factory | Identified exit to Factory 9864 | -5/Factory | Build established: Assassin 9941 | -5/Factory | Search patrols dispatched 10228 | -5/Factory | Sucked down chute 10228 | -5/Factory | Entered Waste 10243 | -5/Waste | EMP discharged 10278 | -5/Waste | Spotted C-40 Crusher 10297 | -5/Waste | Spotted C-40 Crusher 10301 | -5/Waste | Crushed by Compactor (1 part destroyed) 10336 | -5/Waste | Spotted C-40 Crusher 10340 | -5/Waste | Spotted C-40 Crusher 10343 | -5/Waste | EMP discharged 10343 | -5/Waste | System corruption reached 10% 10343 | -5/Waste | Crushed by Compactor (0 parts destroyed, 1 dropped) 10376 | -5/Waste | Discovered new exit (range 15) 10399 | -5/Waste | Identified exit to Factory 10400 | -5/Waste | Entered Factory 10419 | -5/Factory | Discovered exit to Factory (range 12) 10637 | -5/Factory | Build established: Skirmisher 11174 | -5/Factory | Entered another Factory area 11174 | -4/Factory | Evolved 2 slots: Utility x1, Weapon x1 11467 | -4/Factory | Build established: Hacker-Skirmisher 11477 | -4/Factory | DAS Turret deployed 11793 | -4/Factory | Discovered new exit (range 12) 11935 | -4/Factory | Identified exit to Upper Caves 11935 | -4/Factory | Identified exit to Extension 11935 | -4/Factory | Identified exit to Armory 11949 | -4/Factory | Found Prototype Launcher 11949 | -4/Factory | Identified Tesla Bomb Launcher 12279 | -4/Factory | Entered Upper Caves 12300 | -4/Upper Caves | Learned Research terminal intel 12357 | -4/Upper Caves | Build established: Hacker-Tank 12896 | -4/Upper Caves | Build established: Hacker-Skirmisher 13149 | -4/Upper Caves | Learned location of 1 exit from Research 13280 | -4/Upper Caves | Attracted the attention of an 0b10 outpost 13352 | -4/Upper Caves | Lost 3 parts (1n2w) 13646 | -4/Upper Caves | Spotted B-86 Titan 14000 | -4/Upper Caves | Build established: Hacker-Tank 14158 | -4/Upper Caves | Learned Research interactive machine intel 14249 | -4/Upper Caves | Discovered new exit (range 10) 14272 | -4/Upper Caves | Identified exit to Upper Caves 14305 | -4/Upper Caves | Build established: Hacker-Skirmisher 14338 | -4/Upper Caves | Entered another Upper Caves area 14338 | -4/Upper Caves | Accompanied by 2 allies 14436 | -4/Upper Caves | Encountered a Warlord checkpoint 14656 | -4/Upper Caves | Lost 3 allies 15117 | -4/Upper Caves | Discovered new exit (range 14) 15142 | -4/Upper Caves | Identified exit to Warlord 15515 | -4/Upper Caves | Spotted B-86 Titan 15548 | -4/Upper Caves | Entered Warlord 16034 | -4/Warlord | Found Prototype Device 16124 | -4/Warlord | Learned location of Command (-1) 16124 | -4/Warlord | Learned Armory trap positions 16126 | -4/Warlord | Learned 4 Access zone layouts 16126 | -4/Warlord | Learned 4 Research zone layouts 16128 | -4/Warlord | Learned Factory repair station intel 16128 | -4/Warlord | Learned Factory fabricator intel 16128 | -4/Warlord | Learned Armory scanalyzer intel 16177 | -4/Warlord | Met Warlord 16183 | -4/Warlord | Warlord's base attacked by MAIN.C 16430 | -4/Warlord | Opened Warlord's prototype stash 16447 | -4/Warlord | Found Exp. Targeting Computer 16456 | -4/Warlord | Found Prototype Processor 16456 | -4/Warlord | Identified Exp. Core Analyzer 16459 | -4/Warlord | Found Prototype Device 16459 | -4/Warlord | Identified Exp. Focal Shield 16533 | -4/Warlord | Warlord forces counterattacked 16556 | -4/Warlord | Spotted Executioner 16611 | -4/Warlord | Spotted Executioner 16615 | -4/Warlord | Spotted Executioner 16623 | -4/Warlord | Spotted Striker 16638 | -4/Warlord | Destroyed Striker 16655 | -4/Warlord | Spotted Striker 16670 | -4/Warlord | Destroyed Striker 16685 | -4/Warlord | Lost 18 allies 16701 | -4/Warlord | Spotted Executioner 16708 | -4/Warlord | Spotted Striker 16735 | -4/Warlord | Spotted Executioner 16745 | -4/Warlord | Destroyed Striker 16751 | -4/Warlord | System corruption reached 10% 16755 | -4/Warlord | Lost 8 allies 16755 | -4/Warlord | Discovered new exit (range 8) 16762 | -4/Warlord | Identified exit to Proximity Caves 16763 | -4/Warlord | Entered Proximity Caves 16784 | -3/Proximity Caves | Lost 4 parts (3u1w) 17154 | -3/Proximity Caves | Build established: Hacker-Tank 17328 | -3/Proximity Caves | Attracted the attention of an 0b10 checkpoint 17570 | -3/Proximity Caves | Discovered new exit (range 11) 17587 | -3/Proximity Caves | Identified exit to Research 17612 | -3/Proximity Caves | Entered Research 17612 | -3/Research | Evolved 2 slots: Utility x2 17613 | -3/Research | Identified exit to Testing 17615 | -3/Research | Identified exit to Research 17616 | -3/Research | Loaded intel: 44 interactive machine locations 17617 | -3/Research | Loaded intel: 21 terminal locations 17931 | -3/Research | Build established: Hacker-Skirmisher 17949 | -3/Research | Crushed by falling debris 17949 | -3/Research | Discovered exit to Research (range 5) 17974 | -3/Research | Crushed by falling debris 17990 | -3/Research | Entered another Research area 17990 | -2/Research | Warlord forces began assault on 0b10 17990 | -2/Research | Evolved 2 slots: Propulsion x1, Utility x1 18005 | -2/Research | Lost 3 parts (3u) 18015 | -2/Research | Distinguished unit "Metalheads" dispatched to help 18015 | -2/Research | Distinguished unit "Death Star" dispatched to help 18100 | -2/Research | Research machine network offline 18283 | -2/Research | Build established: Tank 18516 | -2/Research | Lost 5 allies 18652 | -2/Research | Found Fusion Bomb Launcher 18654 | -2/Research | Found Fusion Bomb Launcher 18688 | -2/Research | Borebot progress halted 18807 | -2/Research | Met up with Warlord 18932 | -2/Research | Borebot progress halted 18966 | -2/Research | Discovered new exit (range 6) 18974 | -2/Research | Identified exit to Quarantine 19344 | -2/Research | Spotted Striker 19347 | -2/Research | Spotted Striker 19354 | -2/Research | Destroyed Striker 19370 | -2/Research | Destroyed Striker 19386 | -2/Research | Build established: Scavenger-Tank 19507 | -2/Research | Given Cave Seal Controls access code 19629 | -2/Research | Spotted Striker 19653 | -2/Research | Destroyed Striker 19811 | -2/Research | Build established: Tank 19818 | -2/Research | Discovered new exit (range 11) 19831 | -2/Research | Entered Access 19831 | -1/Access | Evolved 2 slots: Power x1, Propulsion x1 19832 | -1/Access | Identified exit to Command 19884 | -1/Access | Lost 4 allies 19948 | -1/Access | Garrison activated, responded to threat 20134 | -1/Access | DAS Turret deployed 20171 | -1/Access | Build established: Scavenger-Tank 20265 | -1/Access | Destroyed 7 combat bots 20669 | -1/Access | Build established: Scavenger-Gunner 20697 | -1/Access | Entered Command 20787 | -1/Command | System corruption reached 10% 20942 | -1/Command | Disengaged cave seal 20942 | -1/Command | Derelicts emerged from the dark tunnel 20942 | -1/Command | Welcomed Warlord to Command 21048 | -1/Command | Lost 3 allies 21065 | -1/Command | Lost 3 parts (1n2u) 21068 | -1/Command | Phase Generator disabled 21403 | -1/Command | Build established: Hacker-Tank 21447 | -1/Command | First assault squad dispatched 21554 | -1/Command | Lost 3 allies 21594 | -1/Command | Found Tesla Bomb Launcher 22076 | -1/Command | Build established: Scavenger-Skirmisher 22273 | -1/Command | Disengaged cave seal 22273 | -1/Command | Derelicts emerged from the dark tunnel 22324 | -1/Command | Lost 3 allies 22430 | -1/Command | Spotted M Guard 22430 | -1/Command | Spotted M Guard 22433 | -1/Command | Warlord commented on Warlord statues 22433 | -1/Command | Spotted Combat Programmer 22436 | -1/Command | Destroyed M Guard 22456 | -1/Command | Destroyed M Guard 22458 | -1/Command | All MAIN.C guards destroyed 22470 | -1/Command | Lost 3 parts (1p2u) 22482 | -1/Command | Found Prototype Device 22482 | -1/Command | Identified AEGIS Remote Shield 22485 | -1/Command | Found Prototype Device 22485 | -1/Command | Identified Thermal Barrier 22489 | -1/Command | Lost 14 allies 22494 | -1/Command | Found Prototype Launcher 22494 | -1/Command | Identified Adv. Micro-nuke Launcher 22610 | -1/Command | Lost 6 allies 22615 | -1/Command | Met MAIN.C 22619 | -1/Command | 0b10 Conduit disabled 22641 | -1/Command | System corruption reached 30% 22740 | -1/Command | Lost 14 parts (2p4n4u4w) 22995 | -1/Command | Destroyed MAIN.C Shell 22998 | -1/Command | MAIN.C activated Command garrisons 22999 | -1/Command | Surrendered to MAIN.C 22999 | -1/Command | Loaded intel: 60 machine locations 22999 | -1/Command | Loaded intel: 100 trap records 22999 | -1/Command | Identified exit to Surface 22999 | -1/Command | Discovered exit to Surface (range 98) 22999 | -1/Command | Discovered exit to Surface (range 34) 23082 | -1/Command | Build established: Scavenger-Gunner 23178 | -1/Command | MAIN.C activated Command garrisons 23217 | -1/Command | Unknown forces attacked Command 23217 | -1/Command | Spotted EQ-000 23217 | -1/Command | Spotted EQ-002 23217 | -1/Command | Spotted EQ-004 23217 | -1/Command | Spotted EQ-001 23222 | -1/Command | Core integrity fell below 50% 23226 | -1/Command | Spotted EQ-016 23238 | -1/Command | Destroyed EQ-001 23247 | -1/Command | Core integrity fell below 20% 23251 | -1/Command | Destroyed by EQ-004 with Heavy Hardcell Cannon Last Messages --------------- 23245_ System corrupted: Matter fused (-6). 23245_ The unstable cave ceiling collapses. 23245_ Enh. Hardcell Cannon destroyed. 23245_ Exp. Targeting Computer destroyed. 23245_ Adv. Heat Sink destroyed. 23245_ Knocked back. 23246_ The unstable cave ceiling collapses. 23246_ Penetrated by Slug. 23247_ Dropped Hcp. Storage Unit. 23248_ The unstable cave ceiling collapses. 23248_ Dropped Enh. Nova Cannon. 23248_ Penetrated by Slug. 23248_ EQ-016 suffers critical hit (Blast). 23248_ Knocked back. 23249_ Acquired 28 matter. 23249_ K-01 Serf collects debris. 23250_ Slug penetrates G-73 Enforcer. 23250_ G-73 Enforcer suffers critical hit (Destroy). [Achievement: 40k Club] Map ----- +----------------------------------------------------+ | ????????????????# # #????# #]]] ! = | | ????????????????# # ###### #!!! = | | ??############### # # #!!!**== | | ??# ## + # ######## | | ??# ## # + #??????? | | ??# ## # # #??????? | | ??# ## # # #??????? | | ??# ## # + #??????? | | ??# ###+####### ######### ] #??????? | | ??# # [# #???????# #??????? | | ??# # # #???????# #??????? | | ??# # # #???????####+###?###### | | ??# # # #??????????# #???#????? | | ??# # # #??????????# #???#?#### | | ??# # # #??????????# #???#?#""" | | ??########+##### # ########???# #???#?#"" | | ??????# ## # ## #???# #???#?#""" | | ??????# #######+#### ## ! #???# #???#?#""" | | ??????# T" g ## #???# #???#?#" | | ??????# " g ## #???# #???#?#"" | | ??????# g g ## #???# #???#?#"" | | ??????# ##+####### ## #####+###?#?# " | | ??????# # ## ## ## #?#?# " | | ??????######### ## % ## ## #?#?# " | | ??????????????# ## ## ## #?#?#""" | | ???##########?# ## @ ## ## #?#?#"" | | ???# ! #?# # k ! # #?#?# | | ???# #########; % # #?#?# | | ???# # ## g # # "##### | | ???# # ! Q ! % Q | | ???# + !%[] % | | ???# !! # !k% !!! % % | | ???# ! # #; []] # # ###### | | ???# ### #####; # % #?#?# | | ???# #?# #???## #?#?# | | ###########+###+###### #?#?#### | | ] # ## # !! #?#????? | | * # ## # # ! #?###### | | # ## # # ! #??????? | | + + # "" # #??????? | | # # # "" " # #??????? | | # # # """" # #??????? | | # # # "" # #??????? | | ########### #= # # #??????? | | ??######### # # # #??????? | | ??# [ + / ##+####??????? | | ### # # # #??????? | | #"" # # # #??????? | | #"" "" # # ## #### # #??????? | | #"" """" # # ## #### # #??????? | +----------------------------------------------------+ Best States ------------- Heat Dissipation 128 Energy Generation 63 Energy Capacity 825 Matter Stores 300 Matter Capacity 300 Sight Range 16 Robot Scan Range 20 Terrain Scan Range 20 Terrain Scan Density 210 Power Amplification 20 Base Temperature (-) 200 Corruption Block 12 Armor Coverage 825 Resistance: KI 30 Resistance: TH 50 Resistance: EX 50 Weapon Cycling 15 Phase Shifting 15 Evasion (%) 80 Targeting Accuracy 20 Target Analysis 8 Core Analysis 8 Armor Integrity Analysis 40 Recoil Reduction 2 Matter Filtering 30 Particle Charging 20 Offensive Hacking 22 Defensive Hacking 28 Item Schematics ----------------- Combat Drone Bay | -6/Data Miner | Free Lgt. Regenerative Plating | -6/Data Miner | Free Enh. Flexi-carbon Leg | -6/Data Miner | Free Smartbomb Launcher | -6/Data Miner | Free Imp. Heavy Treads | -6/Data Miner | Free Hvy. Gauss Cannon | -6/Data Miner | Free Prc. Energy Filter | -6/Data Miner | Free Imp. Force Field | -6/Data Miner | Free Robot Schematics ------------------ G-50 Soldier | -6/Data Miner | Free S-27 Virus | -6/Data Miner | Free X-77 Beamer | -6/Data Miner | Free Fabricated ------------ Nothing Repaired ---------- Lgt. Angular Momentum Engine | 1% | -8/Materials Lrg. Storage Unit | 32% | -8/Materials Imp. Terrain Scanner | 18% | -5/Factory Lgt. Armored Exoskeleton | 46% | -5/Factory | Broken Studied --------- Hvy. Ion Cannon | -6/Factory | Hacked Mass Driver | -4/Factory | Hacked Adv. Plasma Cannon | -4/Factory | Hacked Alien Tech Used ----------------- None Achievements -------------- 40k Club Corridor Of Doom Meet Your Maker Physics Protects Prodigal Son Z1$+NX3F=JRE3_ZNQR Challenges ------------ None Game ------ Seed HeartPhasingLoader Manual? 0 Play Time 03:16:29 Cumulative 91.1 hours Start 2026.02.19 @ 16:01:36 End 2026.02.19 @ 22:16:34 Sessions 13 Manual Loads 0 Difficulty Rogue Special Mode None Game No. 119 Rogue 44 Adventurer 75 Explorer 0 Win Type - Total 4 Types 4/0/0/0/0/0/0/0/0/0 Lore% 48 Gallery% 49 Achievement% 39 Wizard Run 0 Options --------- Layout 2 ASCII 0 Keyboard 0 Movement Numpad Keybinds 0 Fullscreen 2 Font 24/Smallcaps Map View 50x44 Zoom Use 0% Tactical HUD 1 Map Filters NONE Filters NONE Steam 1 RUN: d54b17fd-2f5a-4c2a-84f2-53ff9cbe5bed